bitfinex-derivatives/quotes_SOLF0:USTF0_20240910
["timestamp","ask_amount","ask_price","bid_price","bid_amount"]
[1725966284457,155.82568677,135.17,135.11,3.7004]
[1725966284757,2.2389599,135.16,135.12,9.1]
[1725966284959,1.11948014,135.16,135.12,9.1]
[1725966285157,3.6998,135.14,135.12,9.1]
[1725966287352,3.6999,135.13,135.1,4.996]
[1725966287553,3.6999,135.13,135.11,9.1]
[1725966290561,3.6999,135.13,135.11,12.8004]
[1725966291456,3.6999,135.13,135.11,9.1]
[1725966292059,3.6999,135.13,135.11,12.8004]
[1725966297371,3.6999,135.13,135.11,9.1]
[1725966298668,1.3196,135.15,135.11,9.1]
[1725966298669,3.6997,135.14,135.11,12.8005]
[1725966298867,1.3196,135.15,135.11,12.8005]
[1725966299259,1.3196,135.15,135.11,9.1]
[1725966299764,3.7001,135.13,135.11,9.1]
[1725966303164,1.3196,135.15,135.11,9.1]
[1725966303165,3.7002,135.12,135.11,9.1]
[1725966303374,3.7002,135.12,135.1,10.3954]
[1725966303562,3.6998,135.14,135.11,9.1]
[1725966303963,3.6998,135.14,135.11,12.8003]
[1725966304172,3.6999,135.13,135.11,12.8003]
[1725966304470,152.03856175,135.18,135.12,9.1]
[1725966304672,152.03856175,135.18,135.16,9.1]
[1725966304867,155.73726175,135.18,135.16,9.1]
[1725966305065,3.67338151,135.21,135.17,9.1]
[1725966305265,3.67338151,135.21,135.14,3.74074226]
[1725966305266,10.5008,135.24,135.19,9.1]
[1725966305468,3.6979,135.21,135.19,9.1]
[1725966305861,152.03708852,135.31,135.2,9.1]
[1725966306066,152.03708852,135.31,135.15,2.6803]
[1725966306067,1.11856741,135.27,135.15,2.6803]
[1725966306266,1.11856741,135.27,135.24,9.1]
[1725966306464,539.42768262,135.28,135.24,9.1]
[1725966306667,535.78257385,135.28,135.25,9.1]
[1725966307067,539.47867385,135.28,135.25,9.1]
[1725966307265,1.4008,135.3,135.26,9.1]
[1725966307469,5.03480917,135.3,135.26,9.1]
[1725966307673,3.6958,135.28,135.26,9.1]
[1725966307872,5.03480917,135.3,135.26,9.1]
[1725966308072,3.6957,135.29,135.26,9.1]
[1725966308269,3.6957,135.29,135.25,9.1]
[1725966308466,5.03480917,135.3,135.25,9.1]
[1725966310177,3.6959,135.28,135.25,9.1]
[1725966310371,5.03480917,135.3,135.22,2.6803]
[1725966310372,14.13480917,135.3,135.22,2.6803]
[1725966310577,14.13480917,135.3,135.24,9.1]
[1725966310882,3.696,135.28,135.24,9.1]
[1725966311678,3.696,135.28,135.23,3.68111546]
[1725966311874,3.6962,135.27,135.24,9.1]
[1725966312684,5.03480917,135.3,135.22,2.6803]
[1725966312870,9.1,135.28,135.23,9.1]
[1725966313074,5.03480917,135.3,135.23,12.75781895]
[1725966313277,10.21804997,135.29,135.23,12.75781895]
[1725966313481,10.21804997,135.29,135.23,16.45481895]
[1725966313482,3.6962,135.27,135.23,16.45481895]
[1725966314186,3.6962,135.27,135.24,9.1]
[1725966314376,5.03480917,135.3,135.23,7.35481895]
[1725966314377,3.6959,135.28,135.25,9.1]
[1725966315585,3.6957,135.29,135.25,12.7965]
[1725966319483,3.6957,135.29,135.26,3.6963]
[1725966320583,3.6957,135.29,135.27,9.1]
[1725966320890,3.6947,135.32,135.28,9.1]
[1725966321186,1.2987,135.36,135.31,9.1]
[1725966321382,1.2987,135.36,135.2,7.396]
[1725966321383,3.6944,135.33,135.32,9.1]
[1725966321586,1.2987,135.36,135.31,9.1]
[1725966322189,1.2987,135.36,135.29,1.3704]
[1725966322388,10.3987,135.36,135.31,9.1]
[1725966322981,3.694,135.35,135.31,12.7948]
[1725966323790,1.2987,135.36,135.31,12.7948]
[1725966324786,3.6943,135.34,135.31,9.1]
[1725966325492,2.6595,135.39,135.32,9.1]
[1725966325679,9.1,135.37,135.32,9.1]
[1725966325883,9.1,135.37,135.32,12.7947]
[1725966326086,9.1,135.37,135.32,9.1]
[1725966326087,3.6939,135.35,135.32,9.1]
[1725966326393,9.1,135.36,135.31,9.1]
[1725966326689,3.6943,135.34,135.31,9.1]
[1725966327189,9.1,135.36,135.31,9.1]
[1725966327386,3.694,135.35,135.31,9.1]
[1725966327689,9.1,135.36,135.3,3.6952]
[1725966327988,9.1,135.36,135.3,12.7952]
[1725966328284,3.6943,135.34,135.3,12.7952]
[1725966328487,3.6943,135.34,135.31,12.795]
[1725966328889,3.6943,135.34,135.31,9.1]
[1725966329986,3.6943,135.34,135.31,12.795]
[1725966330782,3.6943,135.34,135.31,9.1]
[1725966331395,9.1,135.37,135.31,9.1]
[1725966331989,3.6943,135.34,135.31,9.1]
[1725966332301,3.6943,135.34,135.32,9.1]
[1725966332589,10.3758,135.38,135.32,9.1]
[1725966332590,1.2758,135.38,135.32,9.1]
[1725966332786,1.2758,135.38,135.32,12.7946]
[1725966332990,3.6941,135.35,135.32,9.1]
[1725966333190,10.3758,135.38,135.32,9.1]
[1725966333793,1.11738624,135.37,135.32,9.1]
[1725966334297,3.6944,135.34,135.32,9.1]
[1725966334485,9.1,135.37,135.31,9.1]
[1725966334889,3.6946,135.33,135.31,9.1]
[1725966335183,1.2758,135.38,135.28,3.65495991]
[1725966335184,9.1,135.34,135.28,3.65495991]
[1725966335394,3.6948,135.32,135.28,9.1]
[1725966335595,3.6948,135.32,135.28,12.77487247]
[1725966335792,3.6948,135.32,135.29,3.6955]
[1725966335997,3.6951,135.31,135.28,12.77487247]
[1725966336793,3.6951,135.31,135.28,16.47057247]
[1725966338099,3.6951,135.31,135.28,7.37057247]
[1725966338300,3.6953,135.3,135.29,9.1]
[1725966340189,3.6951,135.31,135.29,9.1]
[1725966342400,1.3995,135.33,135.27,3.6959]
[1725966342601,1.3995,135.33,135.28,9.1]
[1725966343101,10.4995,135.33,135.26,3.7659889]
[1725966343500,10.4995,135.33,135.28,9.1]
[1725966343813,3.6955,135.3,135.28,9.1]
[1725966344001,10.4995,135.33,135.28,9.1]
[1725966344198,12.78475528,135.32,135.27,9.1]
[1725966345107,3.6959,135.28,135.27,9.1]
[1725966346310,9.1,135.31,135.15,7.3985]
[1725966346508,9.1,135.31,135.25,9.1]
[1725966347303,9.1,135.3,135.25,9.1]
[1725966347710,9.1,135.3,135.22,3.6974]
[1725966348099,9.1,135.3,135.24,9.1]
[1725966348304,1.3861,135.29,135.24,9.1]
[1725966348810,1.3994,135.28,135.24,9.1]
[1725966349015,1.3994,135.28,135.25,9.1]
[1725966349212,1.3994,135.28,135.26,9.1]
[1725966349609,5.0953,135.28,135.26,9.1]
[1725966349808,12.78475528,135.32,135.26,9.1]
[1725966350114,3.6957,135.29,135.27,9.1]
[1725966351011,3.6954,135.3,135.28,9.1]
[1725966353421,3.6951,135.31,135.28,9.1]
[1725966354220,3.6953,135.3,135.28,9.1]
[1725966354812,3.6951,135.31,135.28,12.7958]
[1725966355620,3.6953,135.3,135.28,9.1]
[1725966357018,3.6952,135.31,135.28,12.7958]
[1725966357312,1.3994,135.32,135.28,12.73011166]
[1725966357518,5.0943,135.32,135.29,12.7954]
[1725966359609,3.6949,135.32,135.29,12.7954]
[1725966359819,2.6913,135.37,135.31,9.1]
[1725966359820,153.13612795,135.36,135.31,9.1]
[1725966360015,153.13612795,135.36,135.32,9.1]
[1725966360211,3.6945,135.33,135.31,9.1]
[1725966360615,162.23612795,135.36,135.3,9.1]
[1725966361019,3.6949,135.32,135.3,9.1]
[1725966361625,9.1,135.33,135.27,3.6959]
[1725966361819,9.1,135.33,135.28,9.1]
[1725966362721,12.73290203,135.32,135.26,9.1]
[1725966363023,1.3574,135.31,135.25,9.1]
[1725966363224,3.6959,135.28,135.25,12.7966]
[1725966364123,3.6963,135.27,135.25,9.1]
[1725966364517,9.1,135.3,135.25,9.1]
[1725966365719,9.1,135.29,135.21,1.2714]
[1725966365920,3.6969,135.24,135.21,1.2714]
[1725966366224,9.1,135.28,135.22,12.7974]
[1725966366419,9.1,135.28,135.22,9.1]
[1725966367023,3.6971,135.24,135.22,9.1]
[1725966370926,3.6971,135.24,135.2,4.9794]
[1725966371218,3.6971,135.24,135.21,9.1]
[1725966372229,3.6971,135.24,135.21,12.7977]
[1725966372422,3.6972,135.23,135.21,9.1]
[1725966373029,3.6969,135.24,135.21,9.1]
[1725966373226,3.6969,135.24,135.21,12.7975]
[1725966374928,9.1,135.28,135.22,3.6973]
[1725966375230,9.1,135.28,135.23,9.1]
[1725966376324,3.6968,135.25,135.23,9.1]
[1725966376720,9.1,135.28,135.23,9.1]
[1725966377037,9.1,135.29,135.24,9.1]
[1725966377227,3.6964,135.26,135.24,9.1]
[1725966379139,3.6966,135.25,135.22,12.7972]
[1725966379734,3.6965,135.26,135.22,12.7972]
[1725966383632,3.6965,135.26,135.23,3.6971]
[1725966383935,9.1,135.3,135.24,9.1]
[1725966384440,9.1,135.3,135.24,12.7968]
[1725966384947,9.1,135.3,135.25,3.6966]
[1725966385631,3.696,135.28,135.25,3.6966]
[1725966386137,9.1,135.3,135.24,12.7968]
[1725966386440,3.6956,135.29,135.24,9.1]
[1725966386632,9.1,135.3,135.24,9.1]
[1725966386832,9.1,135.3,135.25,3.6965]
[1725966387345,3.696,135.28,135.25,3.6965]
[1725966387539,3.696,135.28,135.24,12.7968]
[1725966389132,3.6961,135.27,135.24,12.7968]
[1725966390641,3.6966,135.26,135.24,9.1]
[1725966392234,3.6966,135.26,135.2,4.94175778]
[1725966392235,3.6966,135.25,135.22,9.1]
[1725966392539,3.6966,135.25,135.22,12.7973]
[1725966393442,3.697,135.24,135.22,3.6973]
[1725966393837,9.1,135.26,135.21,9.1]
[1725966394036,10.4882,135.26,135.21,9.1]
[1725966394534,9.1,135.25,135.2,10.3796]
[1725966395133,9.1,135.25,135.2,9.1]
[1725966396437,3.6973,135.23,135.2,12.7979]
[1725966396642,12.8021965,135.25,135.2,9.1]
[1725966397747,3.6973,135.23,135.2,9.1]
[1725966397947,3.6973,135.23,135.2,12.7979]
[1725966398339,3.6971,135.24,135.2,9.1]
[1725966398835,3.6971,135.24,135.14,7.50222746]
[1725966398836,3.6979,135.21,135.14,1.3664]
[1725966399039,9.1,135.2,135.15,6.2097245]
[1725966399243,9.1,135.19,135.14,14.1659]
[1725966399646,3.6987,135.18,135.14,14.1659]
[1725966401447,3.6988,135.17,135.14,14.1659]
[1725966401747,3.6988,135.17,135.14,12.7995]
[1725966401946,9.1,135.18,135.13,3.6998]
[1725966402146,12.80401894,135.18,135.13,3.6998]
[1725966402450,3.6992,135.16,135.13,3.6998]
[1725966403253,3.6992,135.16,135.12,3.7001]
[1725966403254,3.6995,135.15,135.12,3.7001]
[1725966403438,9.1,135.16,135.12,3.7001]
[1725966404149,3.6994,135.15,135.12,3.7001]
[1725966409049,3.6994,135.15,135.13,3.6999]
[1725966410558,9.1,135.18,135.14,3.6996]
[1725966410754,9.1,135.18,135.13,9.1]
[1725966410955,9.1,135.18,135.15,3.6994]
[1725966410956,12.7987,135.18,135.15,3.6994]
[1725966411351,9.1,135.18,135.15,3.6994]
[1725966411660,9.1,135.18,135.13,9.1]
[1725966412061,3.6988,135.17,135.14,3.6994]
[1725966413849,9.1,135.18,135.13,9.1]
[1725966414360,3.699,135.17,135.13,12.7997]
[1725966414951,3.699,135.17,135.14,3.6996]
[1725966415353,12.7987,135.18,135.13,9.1]
[1725966415557,12.7987,135.18,135.15,3.6993]
[1725966417365,12.7987,135.18,135.14,3.6995]
[1725966418361,12.7987,135.18,135.15,3.6993]
[1725966419365,3.6988,135.17,135.14,3.6995]
[1725966419856,3.6987,135.18,135.13,9.1]
[1725966420570,3.6987,135.18,135.14,3.6995]
[1725966421673,9.1,135.16,135.1,1.3564]
[1725966421872,9.1,135.16,135.1,10.4564]
[1725966422071,3.6996,135.15,135.12,3.7]
[1725966422863,3.6996,135.15,135.1,10.4564]
[1725966422864,9.1,135.14,135.11,3.7004]
[1725966423869,3.7,135.13,135.11,3.7004]
[1725966424368,3.7,135.13,135.1,1.3564]
[1725966425167,3.7,135.13,135.11,3.7004]
[1725966427774,3.7,135.13,135.1,3.7006]
[1725966428177,3.7002,135.12,135.1,3.7006]
[1725966428469,9.1,135.13,135.09,3.7009]
[1725966428676,3.7004,135.12,135.09,3.7009]
[1725966429366,3.7004,135.12,135.1,3.7006]
[1725966429570,3.7,135.13,135.1,3.7006]
[1725966429775,3.7,135.13,135.08,9.1]
[1725966430177,3.7,135.13,135.11,3.7003]
[1725966438076,12.7998,135.14,135.11,3.7003]
[1725966438976,12.7998,135.14,135.09,9.1]
[1725966438977,12.7994,135.15,135.12,3.7001]
[1725966439371,9.1,135.15,135.12,3.7001]
[1725966439771,10.3852,135.15,135.12,3.7001]
[1725966441078,3.6997,135.14,135.12,3.7001]
[1725966441682,3.6997,135.14,135.11,3.7003]
[1725966442381,12.7997,135.14,135.11,3.7003]
[1725966442580,9.1,135.13,135.09,3.7008]
[1725966442878,9.1,135.11,135.06,9.1]
[1725966443076,9.1,135.11,135.06,12.8655399]
[1725966443279,12.8007,135.11,135.08,3.7011]
[1725966445886,3.7008,135.1,135.08,3.7011]
[1725966447088,12.8006,135.11,135.08,3.7011]
[1725966447388,9.1,135.12,135.09,3.7008]
[1725966447784,3.7005,135.11,135.09,3.7008]
[1725966449184,3.7005,135.11,135.08,3.7011]
[1725966449379,3.7007,135.1,135.08,3.7011]
[1725966450280,12.8006,135.11,135.08,3.7011]
[1725966450885,9.1,135.11,135.08,3.7011]
[1725966451186,3.7008,135.1,135.08,3.7011]
[1725966451889,3.7008,135.1,135.07,3.7014]
[1725966452089,3.7008,135.1,135.06,9.1]
[1725966453182,3.7008,135.1,135.07,3.7015]
[1725966453385,3.7008,135.1,135.06,9.1]
[1725966455090,3.7008,135.1,135.08,3.7013]
[1725966457085,10.3852,135.15,135.09,9.1]
[1725966457386,10.3852,135.15,135.05,5.09559988]
[1725966457387,9.1,135.12,135.06,9.1]
[1725966457781,3.7005,135.11,135.08,3.7011]
[1725966457978,10.3852,135.15,135.1,9.1]
[1725966458283,11.0842,135.32,135.14,9.1]
[1725966458480,11.0842,135.32,135.18,3.6985]
[1725966458481,3.6976,135.22,135.18,3.6985]
[1725966458784,1.3265,135.23,135.18,9.1]
[1725966459089,5.0238,135.23,135.18,9.1]
[1725966459586,1.3652,135.27,135.11,2.7541]
[1725966459587,1.3652,135.27,135.21,9.1]
[1725966459786,14.17714319,135.26,135.21,9.1]
[1725966461186,3.6967,135.25,135.21,12.7977]
[1725966461678,8.77364319,135.26,135.21,12.7977]
[1725966461885,1.3265,135.26,135.21,9.1]
[1725966462085,1.3265,135.26,135.22,9.1]
[1725966462792,1.3265,135.26,135.23,3.697]
[1725966465086,5.0229,135.26,135.23,3.697]
[1725966466785,1.3265,135.26,135.24,3.6969]
[1725966466981,3.6961,135.27,135.24,3.6969]
[1725966467393,3.6959,135.28,135.24,3.6969]
[1725966467896,12.82466341,135.29,135.24,3.6969]
[1725966469092,3.6961,135.27,135.24,3.6969]
[1725966472694,3.6959,135.28,135.24,3.6969]
[1725966474397,3.6959,135.28,135.23,9.1]
[1725966475298,3.6959,135.28,135.25,3.6965]
[1725966478296,3.6961,135.27,135.24,3.6968]
[1725966480094,3.6962,135.27,135.24,3.6968]
[1725966481996,9.1,135.29,135.19,6.29751146]
[1725966482198,9.1,135.27,135.22,9.1]
[1725966482399,9.1,135.26,135.2,9.1]
[1725966482605,12.7965,135.26,135.2,9.1]
[1725966483306,3.6966,135.25,135.2,9.1]
[1725966483603,3.6966,135.25,135.21,3.6975]
[1725966484196,9.1,135.26,135.2,3.6978]
[1725966484396,4.98320219,135.27,135.2,9.1]
[1725966484597,9.1,135.26,135.2,9.1]
[1725966485599,9.1,135.26,135.2,12.89078197]
[1725966486395,4.98320219,135.27,135.21,9.1]
[1725966486396,1.2725,135.27,135.21,9.1]
[1725966486713,10.3725,135.27,135.21,9.1]
[1725966487007,3.6964,135.26,135.23,3.697]
[1725966487211,10.3725,135.27,135.22,9.1]
[1725966487808,10.3725,135.27,135.23,3.697]
[1725966488712,1.2725,135.27,135.22,9.1]
[1725966489106,4.9686,135.27,135.24,3.6967]
[1725966490006,4.9686,135.27,135.24,9.1]
[1725966490007,1.2725,135.27,135.24,9.1]
[1725966490712,4.9686,135.27,135.24,12.7968]
[1725966493314,4.9686,135.27,135.24,9.1]
[1725966493508,1.2725,135.27,135.23,3.6971]
[1725966494719,3.6965,135.26,135.22,12.7973]
[1725966494916,3.6965,135.26,135.21,10.4601]
[1725966494917,9.1,135.26,135.21,10.4601]
[1725966495707,9.1,135.26,135.21,14.1577]
[1725966495708,3.6968,135.25,135.21,14.1577]
[1725966496312,3.697,135.24,135.21,14.1577]
[1725966496816,3.697,135.24,135.21,12.7976]
[1725966497414,9.1,135.26,135.21,9.1]
[1725966498224,3.6971,135.24,135.21,9.1]
[1725966498519,1.2725,135.27,135.23,9.1]
[1725966498722,1.2725,135.27,135.25,9.1]
[1725966499627,14.21462363,135.31,135.26,9.1]
[1725966500023,3.6954,135.3,135.26,12.7962]
[1725966500324,14.21462363,135.31,135.26,12.7962]
[1725966500623,3.6957,135.29,135.26,12.7962]
[1725966501720,3.696,135.28,135.25,12.7965]
[1725966502024,9.1,135.3,135.24,9.1]
[1725966503218,9.1,135.3,135.25,3.6964]
[1725966503725,3.6958,135.29,135.25,3.6964]
[1725966505226,3.6958,135.29,135.26,3.6963]
[1725966506534,3.6953,135.3,135.27,3.6959]
[1725966506828,1.3454,135.31,135.27,9.1]
[1725966508227,5.0405,135.31,135.28,3.6958]
[1725966508724,5.0405,135.31,135.27,12.7959]
[1725966509115,5.0405,135.31,135.27,9.1]
[1725966509527,1.3454,135.31,135.28,3.6956]
[1725966509731,1.3454,135.31,135.27,9.1]
[1725966509928,1.3454,135.31,135.28,3.6957]
[1725966511027,5.0405,135.31,135.28,3.6957]
[1725966516331,3.6948,135.32,135.29,3.6953]
[1725966517531,3.695,135.31,135.28,12.7957]
[1725966518933,3.6954,135.3,135.27,12.7959]
[1725966521034,9.1,135.3,135.21,1.298]
[1725966521334,9.1,135.3,135.24,9.1]
[1725966521832,1.3302,135.32,135.25,9.1]
[1725966522034,1.3302,135.32,135.27,9.1]
[1725966522226,10.4302,135.32,135.27,9.1]
[1725966522633,10.4302,135.32,135.28,3.6958]
[1725966522634,3.6951,135.31,135.28,3.6958]
[1725966523139,3.6951,135.31,135.28,3.6957]
[1725966523741,10.4302,135.32,135.27,12.7959]
[1725966523742,3.6953,135.3,135.27,12.7959]
[1725966524244,3.6953,135.3,135.25,9.1]
[1725966524245,9.1,135.3,135.25,9.1]
[1725966524836,9.1,135.3,135.26,3.6963]
[1725966525238,3.6958,135.29,135.26,3.6963]
[1725966527145,3.6954,135.3,135.27,12.7961]
[1725966527747,10.4302,135.32,135.27,9.1]
[1725966527748,3.6955,135.29,135.27,9.1]
[1725966529238,3.6955,135.29,135.27,12.7961]
[1725966529436,3.6955,135.29,135.25,9.1]
[1725966529839,3.6955,135.29,135.25,12.7964]
[1725966530040,3.6954,135.3,135.25,9.1]
[1725966530236,3.6954,135.3,135.27,3.696]
[1725966534850,3.6956,135.29,135.26,12.7962]
[1725966536160,3.6956,135.29,135.26,3.6962]
[1725966537748,9.1,135.27,135.21,1.298]
[1725966537949,9.1,135.25,135.21,1.298]
[1725966538150,3.6971,135.24,135.21,4.9956]
[1725966538356,9.1,135.25,135.2,9.1]
[1725966538756,3.697,135.24,135.2,12.7977]
[1725966540564,9.1,135.24,135.14,11.08411868]
[1725966540764,9.1,135.23,135.17,9.1]
[1725966540958,3.6983,135.19,135.14,6.35797044]
[1725966541164,9.1,135.23,135.17,12.7987]
[1725966541462,3.6979,135.21,135.17,12.7987]
[1725966541660,3.6979,135.21,135.16,3.699]
[1725966541661,9.1,135.21,135.16,3.699]
[1725966541853,9.1,135.2,135.14,11.7445]
[1725966542061,3.6984,135.19,135.15,6.07289713]
[1725966542260,3.6984,135.19,135.15,3.6992]
[1725966542658,5.0416,135.2,135.16,9.1]
[1725966542862,5.0416,135.2,135.16,12.7989]
[1725966546161,3.6983,135.19,135.16,12.7989]
[1725966546360,3.6983,135.19,135.16,9.1]
[1725966547462,9.1,135.21,135.16,9.1]
[1725966547666,1.2751,135.24,135.17,9.1]
[1725966547864,9.1,135.23,135.17,9.1]
[1725966548463,9.1,135.23,135.18,9.1]
[1725966549055,3.6977,135.22,135.18,12.7983]
[1725966549260,3.6977,135.22,135.18,9.1]
[1725966549566,9.1,135.23,135.18,9.1]
[1725966549955,3.6976,135.22,135.18,12.7985]
[1725966550561,3.6978,135.21,135.18,12.7985]
[1725966551361,9.1,135.23,135.18,12.7985]
[1725966551362,3.698,135.2,135.18,9.1]
[1725966551757,3.698,135.2,135.17,12.7987]
[1725966551957,3.6978,135.21,135.17,12.7987]
[1725966554669,3.698,135.2,135.17,12.7987]
[1725966555061,3.6983,135.19,135.16,3.699]
[1725966555269,9.1,135.2,135.14,11.7445]
[1725966555672,9.1,135.2,135.14,1.3058]
[1725966555874,1.373,135.19,135.14,1.3058]
[1725966556576,3.6987,135.18,135.15,3.6993]
[1725966559368,3.6988,135.17,135.15,3.6993]
[1725966559573,3.6988,135.17,135.14,5.0054]
[1725966559871,3.6988,135.17,135.14,3.6996]
[1725966560074,3.6991,135.16,135.14,3.6996]
[1725966560466,3.6991,135.16,135.13,3.6998]
[1725966561176,9.1,135.16,135.11,9.1]
[1725966561373,9.1,135.16,135.1,1.3468]
[1725966561573,9.1,135.16,135.1,10.4468]
[1725966562086,3.6997,135.14,135.12,3.7]
[1725966562270,9.1,135.16,135.12,3.7]
[1725966562671,3.6996,135.15,135.12,3.7]
[1725966563069,9.1,135.16,135.12,3.7]
[1725966563273,5.04334568,135.19,135.09,1.3021]
[1725966563274,3.6999,135.13,135.09,1.3021]
[1725966563479,3.6999,135.13,135.09,10.4021]
[1725966563779,3.7003,135.12,135.1,3.7006]
[1725966565683,3.7,135.13,135.1,3.7006]
[1725966566070,3.7002,135.12,135.1,3.7006]
[1725966566274,9.1,135.13,135.07,9.1]
[1725966566676,3.7003,135.12,135.07,9.1]
[1725966567072,3.7003,135.12,135.07,12.77634242]
[1725966567276,3.7003,135.12,135.09,3.7008]
[1725966567484,3.7003,135.12,135.07,12.77634242]
[1725966569084,3.7003,135.12,135.1,3.7007]
[1725966570069,12.8,135.13,135.1,3.7007]
[1725966570975,4.9946,135.14,135.11,3.7002]
[1725966571179,4.9946,135.14,135.1,9.1]
[1725966571979,4.9946,135.14,135.11,3.7004]
[1725966575785,1.2949,135.14,135.1,9.1]
[1725966576284,1.2949,135.14,135.09,9.1]
[1725966576990,4.9947,135.14,135.11,3.7003]
[1725966581685,1.2949,135.14,135.11,3.7003]
[1725966581893,3.6999,135.13,135.11,3.7003]
[1725966585895,4.9947,135.14,135.11,3.7003]
[1725966586080,14.0947,135.14,135.11,3.7003]
[1725966589092,1.2949,135.14,135.12,3.7001]
[1725966589695,4.9947,135.14,135.11,3.7003]
[1725966592390,14.0947,135.14,135.11,3.7003]
[1725966593190,3.7,135.13,135.11,3.7003]
[1725966594285,3.7,135.13,135.1,3.7006]
[1725966595983,3.7002,135.12,135.1,3.7006]
[1725966596181,10.3949,135.14,135.1,3.7006]
[1725966596594,3.7001,135.13,135.11,3.7004]
[1725966596894,1.2949,135.14,135.09,9.1]
[1725966597692,4.9947,135.14,135.11,3.7003]
[1725966600189,4.9947,135.14,135.09,9.1]
[1725966600397,9.1,135.17,135.11,9.1]
[1725966600791,9.1,135.17,135.15,3.6993]
[1725966601191,9.1,135.17,135.12,9.1]
[1725966601396,3.6991,135.16,135.13,3.6997]
[1725966602597,9.1,135.15,135.12,3.7001]
[1725966602898,9.1,135.15,135.09,4.96905487]
[1725966603100,9.1,135.14,135.09,1.3092]
[1725966603489,9.1,135.12,135.07,12.74784364]
[1725966603690,12.8003,135.12,135.1,3.7007]
[1725966603895,9.1,135.12,135.1,3.7007]
[1725966604703,3.7,135.13,135.11,3.7004]
[1725966605299,3.6997,135.14,135.12,3.7002]
[1725966605496,9.1,135.16,135.11,9.1]
[1725966606005,3.6995,135.15,135.12,3.7]
[1725966606302,3.6995,135.15,135.11,9.1]
[1725966606496,3.6995,135.15,135.12,3.6999]
[1725966607104,3.6995,135.15,135.13,3.6999]
[1725966607304,3.6995,135.15,135.11,9.1]
[1725966607305,12.7991,135.16,135.11,9.1]
[1725966607708,9.1,135.16,135.13,3.6999]
[1725966608799,3.6995,135.15,135.12,3.7]
[1725966610902,3.6992,135.16,135.13,3.6997]
[1725966611999,3.6992,135.16,135.14,3.6996]
[1725966612205,12.799,135.17,135.14,3.6996]
[1725966613506,3.6991,135.16,135.13,3.6998]
[1725966613811,3.6991,135.16,135.1,11.7029]
[1725966614708,3.6991,135.16,135.13,3.6997]
[1725966617798,9.1,135.17,135.12,9.1]
[1725966617799,12.7989,135.17,135.12,9.1]
[1725966618002,3.6989,135.17,135.12,9.1]
[1725966618303,3.6989,135.17,135.14,3.6995]
[1725966618702,12.7989,135.17,135.14,3.6995]
[1725966625009,164.83990771,135.18,135.15,3.6992]
[1725966625909,164.83990771,135.18,135.12,9.1]
[1725966626819,164.83990771,135.18,135.15,3.6992]
[1725966627117,3.6989,135.17,135.15,3.6992]
[1725966630017,164.83990771,135.18,135.15,3.6992]
[1725966631018,164.83990771,135.18,135.14,3.6995]